fUSD/lending_fUSD_20240119
["ID","MTS","AMOUNT","RATE_DAILY","PERIOD"]
[312140695,1705666359592,-500.0,0.00024915,2]
[312140696,1705666359604,-500.0,0.00024915,2]
[312140697,1705666359615,-500.0,0.00024915,2]
[312140698,1705666359626,-612.06,0.00024915,2]
[312140699,1705666359637,-500.0,0.00024915,2]
[312140700,1705666359647,-527.38768129,0.00024915,2]
[312140701,1705666359658,-2049.86,0.00024915,2]
[312140702,1705666359671,-868.63,0.00024915,2]
[312140703,1705666359683,-591.26,0.00024915,2]
[312140704,1705666359695,-500.0,0.00024915,2]
[312140705,1705666359707,-500.0,0.00024915,2]
[312140706,1705666359718,-2549.06,0.00024915,2]
[312140707,1705666359729,-500.0,0.00024915,2]
[312140708,1705666359742,-587.35,0.00024915,2]
[312140709,1705666359754,-1768.63,0.00024915,2]
[312140710,1705666359766,-500.0,0.00024915,2]
[312140711,1705666359778,-500.0,0.00024915,2]
[312140712,1705666359789,-500.0,0.00024915,2]
[312140713,1705666359800,-1408.95,0.00024915,2]
[312140714,1705666359812,-500.0,0.00024915,2]
[312140715,1705666359823,-3266.27,0.00024915,2]
[312140716,1705666359835,-500.0,0.00024915,2]
[312140717,1705666359846,-1854.3,0.00024915,2]
[312140718,1705666359857,-500.0,0.00024915,2]
[312140719,1705666359869,-638.39,0.00024915,2]
[312140720,1705666359879,-500.0,0.00024915,2]
[312140721,1705666359890,-1678.82,0.00024915,2]
[312140722,1705666359902,-614.16,0.00024915,2]
[312140723,1705666359914,-854.41,0.00024915,2]
[312140724,1705666359926,-964.22,0.00024915,2]
[312140725,1705666359938,-1518.27,0.00024915,2]
[312140726,1705666359949,-500.0,0.00024915,2]
[312140727,1705666359961,-2179.92,0.00024915,2]
[312140728,1705666359972,-500.0,0.00024915,2]
[312140729,1705666359984,-500.0,0.00024916,2]
[312140730,1705666359996,-588.64,0.00024916,2]
[312140731,1705666360008,-500.0,0.00024916,2]
[312140732,1705666360020,-609.91,0.00024916,2]
[312140733,1705666360031,-500.0,0.00024916,2]
[312140734,1705666360043,-545.04127096,0.00024916,2]
[312140735,1705666360054,-500.0,0.00024916,2]
[312140736,1705666360066,-530.98486355,0.00024916,2]
[312140737,1705666360077,-500.0,0.00024916,2]
[312140738,1705666360087,-607.72,0.00024916,2]
[312140739,1705666360099,-164.41246711,0.00024916,2]
[312140740,1705666361426,-533.3750066,0.00022995,2]
[312140741,1705666361438,-500.0,0.00022996,2]
[312140742,1705666361451,-500.0,0.00022997,2]
[312140743,1705666361464,-151.0,0.00022998,7]
[312140744,1705666361475,-151.0,0.00023,7]
[312140745,1705666361487,-637.83585918,0.0002327,2]
[312140746,1705666361500,-500.0,0.00023271,2]
[312140747,1705666361512,-500.0,0.00023545,2]
[312140748,1705666361524,-500.0,0.00023819,2]
[312140749,1705666361536,-194.70275095,0.00024093,2]
[312140750,1705666362644,-500.0,0.00022979,2]
[312140751,1705666362656,-678.65,0.00022994,2]
[312140752,1705666362668,-118.07635808,0.00022995,2]
[312140761,1705667210015,318.24,0.00018982,2]
[312140790,1705667378508,295.76,0.00018982,2]
[312140828,1705667432239,-560.76781231,0.00018978,2]
[312140829,1705667432252,-1369.21899126,0.00018978,2]
[312140830,1705667432267,-1960.77227978,0.00018978,2]
[312140831,1705667432278,-186.84451092,0.00018978,2]
[312140832,1705667432292,-34.27406369,0.00018978,2]
[312140833,1705667432303,-4062.60730387,0.00018978,2]
[312140834,1705667432357,-2139.90801857,0.00018977,2]
[312140835,1705667432369,-25966.17472886,0.00018978,2]
[312140836,1705667432384,-3736.67412065,0.00018978,2]
[312140837,1705667432396,-3191.26397536,0.00018979,2]
[312140838,1705667432409,-3030.69265764,0.00018979,2]
[312140839,1705667432420,-474.53273645,0.00018979,2]
[312140840,1705667432432,-867.3574407,0.0001898,2]
[312140841,1705667432444,-4350.83358686,0.0001898,2]
[312140842,1705667432456,-1852.93487008,0.00018981,2]
[312140843,1705667432467,-420.01569595,0.00018981,2]
[312140844,1705667432479,-406.81206,0.00018982,2]
[312140845,1705667432492,-283.29178074,0.00018982,2]
[312140846,1705667432503,-528.06914432,0.00019241,2]
[312140847,1705667432515,-622.17405158,0.00019241,2]
[312140848,1705667432526,-12487.22601135,0.00019241,2]
[312140851,1705667432542,-314.47830538,0.00019241,2]
[312140853,1705667432558,-555.7152168,0.00019241,2]
[312140854,1705667432571,-712.39266076,0.00019241,2]
[312140856,1705667432600,-779.27224229,0.00019241,2]
[312140859,1705667432628,-577.37079432,0.00019241,2]
[312140861,1705667432642,-1138.31996974,0.00019241,2]
[312140864,1705667432656,-474.43698901,0.00019241,2]
[312140866,1705667432671,-5575.25208041,0.00019241,2]
[312140869,1705667432683,-165.17419233,0.00019243,2]
[312140872,1705667432696,-5102.12385438,0.00019298,2]
[312140875,1705667432706,-164.84335482,0.00019299,2]
[312140878,1705667432717,-326.39,0.00019299,2]
[312140880,1705667432728,-483.68814411,0.000193,2]
[312140882,1705667432739,-173.70888881,0.00019565,2]
[312140884,1705667432750,-515.44957841,0.0002,2]
[312140886,1705667432762,-268.3291844,0.0002,2]
[312140888,1705667432773,-4488.84853076,0.0002,2]
[312140890,1705667432784,-155.0,0.00020226,2]
[312140892,1705667432796,-173.70888881,0.00020227,2]
[312140894,1705667432810,-500.0,0.00020563,2]
[312140896,1705667432821,-499.99,0.00020654,2]
[312140898,1705667432832,-13739.68,0.00020655,2]
[312140899,1705667432844,-4146.74204382,0.00020673,5]
[312140902,1705667432856,-211.77261858,0.00020679,2]
[312140904,1705667432868,-175.79,0.00020683,2]
[312140905,1705667432880,-250.0,0.00020694,2]
[312140907,1705667432892,-155.42229511,0.00020696,2]
[312140909,1705667432904,-2353.54951343,0.00020705,2]
[312140910,1705667432924,-1312.90177721,0.00020705,2]
[312140911,1705667432938,-691.59727248,0.00020705,2]
[312140912,1705667432952,-425.76,0.00020705,2]
[312140913,1705667432966,-300.0,0.00020705,2]
[312140914,1705667432980,-2664.2345801,0.00020705,2]
[312140915,1705667432993,-400.0,0.00020705,2]
[312140916,1705667433007,-2141.8,0.00020705,2]
[312140922,1705667438153,-257.14587605,0.00018977,2]
[312140923,1705667438210,-246.89239169,0.00018977,2]
[312140924,1705667438221,-663.84400831,0.00020705,2]
[312140925,1705667438236,-1943.92007984,0.00020705,2]
[312140926,1705667438268,-2611.04276863,0.00020705,2]
[312140927,1705667438279,-13802.57,0.00020721,2]
[312140928,1705667438291,-509.98,0.00020721,2]
[312140929,1705667438302,-200.0,0.00020721,2]
[312140930,1705667438314,-164.87,0.00020729,2]
[312140931,1705667438325,-653.64,0.00020829,2]
[312140932,1705667438337,-1146.09179497,0.00020851,2]
[312140933,1705667438351,-668.34305575,0.00020851,2]
[312140934,1705667438384,-185.56514928,0.00020851,2]
[312140935,1705667438396,-500.0,0.00020859,2]
[312140936,1705667438407,-206.47,0.00020873,2]
[312140937,1705667438419,-173.70888881,0.00020889,2]
[312140938,1705667438431,-2965.03522649,0.00020904,2]
[312140939,1705667438445,-588.0,0.00020904,2]
[312140940,1705667438465,-429.71457338,0.00020904,2]
[312140941,1705667438509,-430.77020013,0.00020904,2]
[312140942,1705667438520,-150.0,0.00020909,2]
[312140943,1705667438531,-2507.64,0.00020913,2]
[312140944,1705667438543,-500.0,0.00020913,2]
[312140945,1705667438554,-174.05,0.00020932,2]
[312140947,1705667438565,-495.55,0.00020939,2]
[312140949,1705667438578,-200.0,0.00020943,2]
[312140951,1705667438590,-1716.72,0.00020982,2]
[312140954,1705667438602,-2002.18,0.00020985,2]
[312140956,1705667438613,-244.79,0.00021061,2]
[312140958,1705667438624,-206.47,0.00021093,2]
[312140960,1705667438635,-244.79,0.00021119,2]
[312140961,1705667438646,-244.79,0.00021177,2]
[312140963,1705667438658,-162.57,0.00021208,2]
[312140965,1705667438669,-244.79,0.00021234,2]
[312140968,1705667438681,-318.24,0.00021246,2]
[312140969,1705667438692,-244.79,0.00021292,2]
[312140971,1705667438702,-206.47,0.00021312,2]
[312140974,1705667438713,-244.79,0.0002135,2]
[312140976,1705667438725,-244.79,0.00021408,2]
[312140978,1705667438736,-244.79,0.00021465,2]
[312140980,1705667438748,-244.79,0.00021523,2]
[312140982,1705667438759,-206.47,0.00021532,2]
[312140984,1705667438769,-173.70888881,0.00021552,2]
[312140986,1705667438784,-244.79,0.00021581,2]
[312140988,1705667438794,-244.79,0.00021639,2]
[312140990,1705667438805,-173.86,0.00021644,2]
[312140992,1705667438816,-244.79,0.00021696,2]
[312140994,1705667438827,-206.47,0.00021752,2]
[312140996,1705667438841,-244.79,0.00021754,2]
[312140998,1705667438853,-653.64,0.00021807,2]
[312141000,1705667438864,-244.79,0.00021812,2]
[312141002,1705667438875,-1847.74262692,0.00021828,2]
[312141004,1705667438889,-869.77077732,0.00021828,2]
[312141006,1705667438900,-863.22,0.00021828,2]
[312141008,1705667438911,-244.79,0.0002187,2]
[312141010,1705667438923,-162.57,0.00021873,2]
[312141012,1705667438935,-751.17628709,0.000219,2]
[312141014,1705667438946,-250.0,0.000219,2]
[312141016,1705667438958,-504.45,0.00021904,2]
[312141018,1705667438970,-2500.0,0.00021918,3]
[312141020,1705667438981,-250.0,0.00021918,2]
[312141022,1705667438994,-244.79,0.00021927,2]
[312141024,1705667439005,-206.47,0.00021971,2]
[312141026,1705667439017,-176.33,0.0002198,2]
[312141028,1705667439028,-256.96,0.0002198,2]
[312141030,1705667439039,-244.79,0.00021985,2]
[312141032,1705667439050,-871.0,0.00022027,2]
[312141034,1705667439061,-244.79,0.00022043,2]
[312141035,1705667439072,-202.67,0.00022057,2]
[312141037,1705667439083,-244.79,0.00022101,2]
[312141040,1705667439095,-256.96,0.00022117,2]
[312141041,1705667439106,-853.18,0.0002213,2]
[312141044,1705667439118,-244.79,0.00022158,2]
[312141045,1705667439129,-206.47,0.00022191,2]
[312141047,1705667439139,-173.70888881,0.00022214,2]
[312141049,1705667439151,-256.96,0.00022254,2]
[312141052,1705667439163,-286.21123975,0.00022288,2]
[312141054,1705667439174,-256.96,0.00022391,2]
[312141056,1705667439185,-206.47,0.00022411,2]
[312141058,1705667439196,-176.33,0.00022528,2]
[312141060,1705667439206,-256.96,0.00022528,2]
[312141062,1705667439217,-162.57,0.00022538,2]
[312141064,1705667439228,-180.0,0.00022603,2]
[312141066,1705667439238,-206.47,0.00022631,2]
[312141068,1705667439249,-256.96,0.00022665,2]
[312141070,1705667439260,-155.0,0.00022701,2]
[312141071,1705667439270,-193.39019381,0.00022743,2]
[312141074,1705667439281,-282.12154414,0.00022743,2]
[312141076,1705667439293,-156.0,0.00022766,2]
[312141078,1705667439303,-653.64,0.00022786,2]
[312141080,1705667439314,-244.76,0.0002279,2]
[312141081,1705667439325,-277.51714749,0.00022802,2]
[312141083,1705667439336,-206.47,0.0002285,2]
[312141085,1705667439347,-308.73559187,0.00022858,2]
[312141087,1705667439358,-5406.9404,0.00022875,2]
[312141089,1705667439370,-3953.8523908,0.00022875,2]
[312141091,1705667439380,-209.6642994,0.00022875,2]
[312141093,1705667439392,-5000.0,0.00022875,2]
[312141095,1705667439403,-209.66429937,0.00022875,2]
[312141097,1705667439414,-209.66429937,0.00022876,2]
[312141099,1705667439426,-209.66429937,0.00022876,2]
[312141101,1705667439437,-173.70888881,0.00022876,2]
[312141103,1705667439448,-1088.75683744,0.00022876,2]
[312141105,1705667439459,-265.96680043,0.00022876,6]
[312141107,1705667439470,-209.66429937,0.00022876,2]
[312141109,1705667439481,-1762.03951238,0.00022876,2]
[312141111,1705667439493,-250.0,0.00022895,2]
[312141113,1705667439505,-150.0,0.000229,2]
[312141115,1705667439516,-152.22546407,0.000229,2]
[312141117,1705667439527,-3953.85239076,0.0002295,2]
[312141119,1705667439538,-1112.05,0.00022969,2]
[312141121,1705667439549,-500.0,0.00022969,2]
[312141123,1705667439559,-510.78008999,0.00022969,2]
[312141125,1705667439570,-500.0,0.00022969,2]
[312141127,1705667439581,-841.52,0.00022969,2]
[312141129,1705667439592,-500.0,0.00022969,2]
[312141131,1705667439603,-926.83,0.00022969,2]
[312141133,1705667439615,-500.0,0.00022969,2]
[312141135,1705667439627,-18448.12,0.0002297,2]
[312141137,1705667439637,-1921.81,0.0002297,2]
[312141139,1705667439648,-2248.84,0.0002297,2]
[312141141,1705667439659,-500.0,0.0002297,2]
[312141143,1705667439670,-1464.22,0.0002297,2]
[312141145,1705667439682,-500.0,0.0002297,2]
[312141147,1705667439693,-500.0,0.0002297,2]
[312141149,1705667439704,-1047.13,0.0002297,2]
[312141150,1705667439714,-1963.07,0.0002297,2]
[312141151,1705667439725,-1112.73,0.0002297,2]
[312141152,1705667439735,-3619.58,0.0002297,2]
[312141153,1705667439745,-17987.25,0.0002297,2]
[312141154,1705667439755,-1863.13,0.0002297,2]
[312141155,1705667439766,-500.0,0.0002297,2]
[312141156,1705667439777,-1346.09,0.0002297,2]
[312141157,1705667439787,-2179.92,0.0002297,2]
[312141158,1705667439799,-1641.77,0.0002297,2]
[312141160,1705667439810,-2564.34,0.0002297,2]
[312141162,1705667439823,-5590.55,0.0002297,2]
[312141165,1705667439836,-2259.38,0.0002297,2]
[312141166,1705667439847,-1736.15,0.0002297,2]
[312141168,1705667439858,-500.0,0.0002297,2]
[312141171,1705667439870,-1412.0,0.0002297,2]
[312141172,1705667439884,-500.0,0.0002297,2]
[312141174,1705667439895,-1206.32,0.0002297,2]
[312141177,1705667439906,-2587.35,0.0002297,2]
[312141178,1705667439917,-1925.23,0.0002297,5]
[312141180,1705667439931,-536.75,0.0002297,2]
[312141182,1705667439942,-8728.18,0.0002297,2]
[312141184,1705667439953,-60513.18393903,0.00022971,2]
[312141186,1705667439964,-3209.77105628,0.00022971,5]
[312141188,1705667439975,-500.0,0.00022972,2]
[312141190,1705667439987,-500.0,0.00022972,2]
[312141193,1705667439999,-506.2622293,0.00022972,2]
[312141194,1705667440010,-223.27890087,0.00022972,2]
[312141196,1705667440020,-529.40457634,0.00022972,2]
[312141198,1705667440033,-500.0,0.00022972,2]
[312141200,1705667440044,-500.0,0.00022972,2]
[312141202,1705667440056,-500.0,0.00022972,2]
[312141205,1705667440068,-500.0,0.00022972,2]
[312141207,1705667440080,-527.88374419,0.00022972,2]
[312141209,1705667440092,-500.0,0.00022972,2]
[312141211,1705667440104,-614.55098564,0.00022972,2]
[312141213,1705667440115,-500.0,0.00022972,2]
[312141215,1705667440126,-500.0,0.00022972,2]
[312141217,1705667440139,-505.38386033,0.00022972,2]
[312141219,1705667440149,-500.0,0.00022972,2]
[312141221,1705667440161,-500.0,0.00022972,2]
[312141223,1705667440171,-520.02447475,0.00022972,2]
[312141225,1705667440182,-505.69504472,0.00022972,2]
[312141227,1705667440193,-500.0,0.00022972,2]
[312141229,1705667440205,-501.92055533,0.00022972,2]
[312141230,1705667440216,-500.0,0.00022972,2]
[312141233,1705667440227,-500.0,0.00022972,2]
[312141234,1705667440240,-500.0,0.00022972,2]
[312141236,1705667440250,-500.0,0.00022972,2]
[312141238,1705667440261,-500.0,0.00022972,2]
[312141241,1705667440272,-506.42067696,0.00022972,2]
[312141242,1705667440283,-500.0,0.00022972,2]
[312141244,1705667440294,-500.0,0.00022972,2]
[312141246,1705667440305,-500.0,0.00022972,2]
[312141248,1705667440315,-500.0,0.00022972,2]
[312141250,1705667440326,-500.0,0.00022972,2]
[312141252,1705667440337,-500.0,0.00022972,2]
[312141254,1705667440348,-500.0,0.00022972,2]
[312141256,1705667440360,-505.289751,0.00022972,2]
[312141258,1705667440371,-502.23054908,0.00022972,2]
[312141260,1705667440382,-462.00015054,0.00022972,2]
[312141262,1705667440393,-500.0,0.00022972,2]
[312141264,1705667440404,-500.0,0.00022972,2]
[312141266,1705667440416,-500.0,0.00022972,2]
[312141268,1705667440427,-506.15769052,0.00022972,2]
[312141271,1705667440439,-588.64771779,0.00022972,2]
[312141272,1705667440449,-503.86205894,0.00022972,2]
[312141275,1705667440461,-500.0,0.00022972,2]
[312141277,1705667440472,-500.0,0.00022972,2]
[312141279,1705667440483,-500.0,0.00022972,2]
[312141280,1705667440495,-500.0,0.00022972,2]
[312141320,1705667440835,-510.24209489,0.00022972,2]
[312141322,1705667440850,-500.0,0.00022972,2]
[312141324,1705667440863,-501.72206016,0.00022972,2]
[312141326,1705667440875,-500.0,0.00022972,2]
[312141328,1705667440885,-505.54494631,0.00022972,2]
[312141330,1705667440897,-500.0,0.00022972,2]
[312141332,1705667440907,-502.67276992,0.00022972,2]
[312141334,1705667440919,-500.0,0.00022972,2]
[312141336,1705667440930,-500.0,0.00022972,2]
[312141338,1705667440941,-500.0,0.00022972,2]
[312141340,1705667440952,-500.0,0.00022972,2]
[312141342,1705667440963,-500.37726585,0.00022972,2]
[312141344,1705667440975,-573.98911421,0.00022972,2]
[312141346,1705667440986,-503.5899767,0.00022972,2]
[312141348,1705667440996,-500.0,0.00022972,2]
[312141350,1705667441007,-500.0,0.00022972,2]
[312141352,1705667441019,-500.0,0.00022972,2]
[312141354,1705667441030,-488.4181322,0.00022972,2]
[312141356,1705667441041,-500.0,0.00022972,2]
[312141358,1705667441052,-351.61956182,0.00022972,2]
[312141359,1705667441062,-500.0,0.00022972,2]
[312141361,1705667441074,-500.0,0.00022972,2]
[312141364,1705667441086,-500.0,0.00022972,2]
[312141365,1705667441096,-500.0,0.00022972,2]
[312141367,1705667441107,-500.0,0.00022972,2]
[312141369,1705667441118,-500.0,0.00022972,2]
[312141371,1705667441129,-500.0,0.00022972,2]
[312141373,1705667441140,-500.0,0.00022972,2]
[312141375,1705667441151,-500.0,0.00022972,2]
[312141377,1705667441165,-500.0,0.00022972,2]
[312141379,1705667441176,-500.0,0.00022972,2]
[312141381,1705667441187,-500.0,0.00022972,2]
[312141384,1705667441198,-500.0,0.00022972,2]
[312141386,1705667441209,-500.0,0.00022972,2]
[312141388,1705667441222,-503.79422958,0.00022972,2]
[312141390,1705667441234,-500.0,0.00022972,2]
[312141392,1705667441245,-500.0,0.00022972,2]
[312141394,1705667441256,-500.0,0.00022972,2]
[312141396,1705667441268,-1606.84,0.00022972,2]
[312141397,1705667441279,-502.99909268,0.00022972,2]
[312141400,1705667441290,-2237.06,0.00022972,2]
[312141402,1705667441301,-500.0,0.00022972,2]
[312141404,1705667441312,-11458.14,0.00022972,2]
[312141405,1705667441324,-500.0,0.00022972,2]
[312141408,1705667441336,-14376.4,0.00022972,2]
[312141409,1705667441347,-500.0,0.00022972,2]
[312141411,1705667441358,-500.0,0.00022972,2]
[312141413,1705667441369,-504.93214549,0.00022972,2]
[312141415,1705667441379,-1824.1,0.00022972,2]
[312141417,1705667441391,-179.14055177,0.00022972,2]
[312141419,1705667441401,-504.18318355,0.00022972,2]
[312141421,1705667441412,-213.76560993,0.00022972,2]
[312141423,1705667441424,-500.0,0.00022972,2]
[312141425,1705667441435,-3250.54,0.00022972,2]
[312141427,1705667441446,-902.35,0.00022972,2]
[312141429,1705667441457,-4355.41,0.00022972,2]
[312141431,1705667441468,-568.35471621,0.00022972,2]
[312141433,1705667441479,-1858.84,0.00022972,2]
[312141435,1705667441491,-500.0,0.00022972,2]
[312141438,1705667441503,-1839.02,0.00022972,2]
[312141440,1705667441514,-501.53808634,0.00022972,2]
[312141442,1705667441525,-2608.36,0.00022972,2]
[312141444,1705667441536,-500.0,0.00022972,2]
[312141446,1705667441548,-15905.62,0.00022972,2]
[312141448,1705667441558,-502.14157306,0.00022972,2]
[312141449,1705667441569,-500.0,0.00022972,2]
[312141452,1705667441580,-500.0,0.00022972,2]
[312141453,1705667441590,-767.45,0.00022972,2]
[312141455,1705667441601,-532.49750893,0.00022972,2]
[312141457,1705667441612,-2112.27,0.00022972,2]
[312141459,1705667441623,-1135.11,0.00022972,2]
[312141461,1705667441635,-2078.31,0.00022972,2]
[312141463,1705667441646,-500.0,0.00022972,2]
[312141465,1705667441657,-622.71,0.00022972,2]
[312141467,1705667441668,-3047.85,0.00022972,2]
[312141469,1705667441679,-513.16180986,0.00022972,2]
[312141471,1705667441690,-500.0,0.00022972,2]
[312141473,1705667441701,-7445.29,0.00022972,2]
[312141475,1705667441711,-24013.57,0.00022972,2]
[312141477,1705667441722,-516.51773469,0.00022972,2]
[312141479,1705667441734,-3571.06,0.00022972,2]
[312141481,1705667441745,-508.73110471,0.00022972,2]
[312141483,1705667441756,-2117.27,0.00022972,2]
[312141485,1705667441767,-1643.0,0.00022972,2]
[312141487,1705667441778,-2844.01,0.00022972,2]
[312141489,1705667441789,-500.0,0.00022972,2]
[312141491,1705667441800,-5957.53282957,0.00022973,2]
[312141492,1705667441811,-343.02606752,0.00022973,2]
[312141493,1705667441822,-523.73846155,0.00022973,2]
[312141494,1705667441834,-542.84106609,0.00022973,2]
[312141495,1705667441847,-516.41480601,0.00022973,2]
[312141496,1705667441860,-7377.05647498,0.00022973,2]
[312141497,1705667441871,-233.12709957,0.00022973,2]
[312141499,1705667441881,-383.86171178,0.00022973,2]
[312141501,1705667441893,-294.20737805,0.00022973,2]
[312141502,1705667441905,-184.77981935,0.00022973,2]
[312141504,1705667441916,-242.64644289,0.00022973,2]
[312141507,1705667441927,-155.0,0.00022973,2]
[312141508,1705667441938,-219.5012922,0.00022973,2]
[312141510,1705667441950,-213.19694017,0.00022973,2]
[312141512,1705667441961,-276.19784904,0.00022973,2]
[312141515,1705667441973,-89935.5642736,0.00022973,2]
[312141516,1705667441983,-156.86578357,0.00022973,2]
[312141519,1705667441994,-155.93996978,0.00022974,2]
[312141520,1705667442005,-500.0,0.00022974,2]
[312141522,1705667442017,-1021.37,0.00022974,2]
[312141524,1705667442027,-516.53,0.00022974,2]
[312141526,1705667442040,-842.75,0.00022974,2]
[312141528,1705667442052,-500.0,0.00022974,2]
[312141531,1705667442064,-500.0,0.00022974,2]
[312141532,1705667442075,-500.0,0.00022974,2]
[312141535,1705667442086,-807.34,0.00022974,2]
[312141536,1705667442097,-500.0,0.00022974,2]
[312141538,1705667442112,-500.0,0.00022974,2]
[312141541,1705667442123,-500.0,0.00022974,2]
[312141543,1705667442134,-500.0,0.00022974,2]
[312141544,1705667442145,-500.0,0.00022974,2]
[312141546,1705667442157,-500.0,0.00022974,2]
[312141548,1705667442168,-336.19521587,0.00022974,2]
[312141550,1705667442179,-759.84,0.00022974,2]
[312141552,1705667442190,-1084.31,0.00022974,2]
[312141554,1705667442201,-591.18,0.00022974,2]
[312141556,1705667442211,-646.3,0.00022974,2]
[312141558,1705667442222,-867.84,0.00022974,2]
[312141560,1705667442232,-1124.93,0.00022974,2]
[312141562,1705667442244,-932.54,0.00022974,2]
[312141564,1705667442255,-1150.28,0.00022974,2]
[312141566,1705667442266,-500.0,0.00022974,2]
[312141568,1705667442277,-742.49,0.00022974,2]
[312141570,1705667442287,-953.83,0.00022974,2]
[312141572,1705667442298,-932.36,0.00022974,2]
[312141574,1705667442308,-725.95,0.00022974,2]
[312141576,1705667442320,-500.0,0.00022974,2]
[312141578,1705667442331,-500.0,0.00022974,2]
[312141580,1705667442343,-500.0,0.00022974,2]
[312141582,1705667442353,-500.0,0.00022974,2]
[312141584,1705667442363,-500.0,0.00022974,2]
[312141586,1705667442374,-1450.57,0.00022974,2]
[312141588,1705667442385,-1450.57,0.00022974,2]
[312141590,1705667442395,-1450.57,0.00022974,2]
[312141592,1705667442406,-1450.57,0.00022974,2]
[312141594,1705667442416,-1450.57,0.00022974,2]
[312141596,1705667442427,-670.27,0.00022974,2]
[312141598,1705667442438,-1450.57,0.00022974,2]
[312141600,1705667442449,-1450.57,0.00022974,2]
[312141602,1705667442460,-500.0,0.00022974,2]
[312141604,1705667442471,-1450.57,0.00022974,2]
[312141606,1705667442482,-500.0,0.00022974,2]
[312141608,1705667442494,-1450.57,0.00022974,2]
[312141610,1705667442504,-500.0,0.00022974,2]
[312141612,1705667442515,-500.0,0.00022974,2]
[312141614,1705667442527,-1450.57,0.00022974,2]
[312141616,1705667442537,-500.0,0.00022974,2]
[312141618,1705667442548,-500.0,0.00022974,2]
[312141620,1705667442559,-1450.57,0.00022974,2]
[312141622,1705667442570,-500.0,0.00022974,2]
[312141624,1705667442580,-1450.57,0.00022974,2]
[312141626,1705667442592,-500.0,0.00022974,2]
[312141628,1705667442603,-1450.57,0.00022974,2]
[312141630,1705667442613,-1450.57,0.00022974,2]
[312141632,1705667442624,-1450.57,0.00022974,2]
[312141634,1705667442636,-1450.57,0.00022974,2]
[312141636,1705667442648,-1450.57,0.00022974,2]
[312141638,1705667442659,-1450.57,0.00022974,2]
[312141640,1705667442669,-1450.57,0.00022974,2]
[312141642,1705667442681,-1450.57,0.00022974,2]
[312141644,1705667442691,-1450.57,0.00022974,2]
[312141646,1705667442702,-1450.57,0.00022974,2]
[312141648,1705667442713,-1450.57,0.00022974,2]
[312141650,1705667442723,-1450.59984993,0.00022974,2]
[312141652,1705667442734,-841.3,0.00022974,2]
[312141654,1705667442746,-789.93,0.00022974,2]
[312141656,1705667442756,-945.66,0.00022974,2]
[312141658,1705667442767,-532.73,0.00022974,2]
[312141660,1705667442778,-500.0,0.00022974,2]
[312141662,1705667442789,-500.0,0.00022974,2]
[312141664,1705667442800,-500.0,0.00022974,2]
[312141666,1705667442811,-500.0,0.00022974,2]
[312141668,1705667442822,-500.0,0.00022974,2]
[312141670,1705667442833,-500.0,0.00022974,2]
[312141672,1705667442847,-500.0,0.00022974,2]
[312141674,1705667442858,-500.0,0.00022974,2]
[312141676,1705667442869,-500.0,0.00022974,2]
[312141678,1705667442880,-500.0,0.00022974,2]
[312141680,1705667442891,-860.21,0.00022974,2]
[312141682,1705667442901,-500.0,0.00022974,2]
[312141684,1705667442912,-500.0,0.00022974,2]
[312141686,1705667442923,-500.0,0.00022974,2]